Cogmind - Beta 14 @@@ ROGUE MODE // 2024.08.11 @ 13:10:50 Player: jimmyl Result: Destroyed by P-80 Master with Gamma Rifle Performance ------------- Evolutions (8) 4000 Regions Visited (13) 2600 Robots Destroyed (90) 450 Value Destroyed (2992) 2992 Prototype IDs (33) 660 Alien Tech Used (0) 0 Bonus (1841) 1841 TOTAL SCORE: 12543 Bonus ------- High Alert Combat Kills 341 Follower Combat Kills 501 Entered Garrisons 200 Used RIF Installer 500 Aligned with FarCom 300 Friendly Fire -1 Cogmind --------- Core Integrity 0/1450 Matter 300/300 Energy 88/100 System Corruption 6% Temperature Cool (0) Movement Hovering (70) Location -2/Research Parts ------- > --- POWER (2) -------- (None) > --- PROPULSION (4) --- Improved Gyrokinetic Inverter > --- UTILITY (14) ----- Hacking Suite > --- WEAPON (3) ------- Enhanced Force Lance > --- INVENTORY (5) ---- Magnetic Acceleration Cannon Rocket Launcher Peak State ------------ > --- POWER ------------ Micro Fission Core > --- PROPULSION ------- Gyrokinetic Inverter Gyrokinetic Inverter Improved Gyrokinetic Inverter Xenon Bombardment Thruster > --- UTILITY ---------- Improved Cooling System Machine Analyzer Enhanced Optical Array Advanced Signal Interpreter Long-range Terrain Scanner Hacking Suite Hacking Suite Hacking Suite Improved Hacking Suite Relay Coupler [NC] Relay Coupler [Grunt] > --- WEAPON ----------- Improved Datajack > --- INVENTORY -------- Magnetic Acceleration Cannon Rocket Launcher Enhanced Force Lance [Rating: 75] Favorites ----------- Power Micro Fission Core Engine Ion Engine Power Core Micro Fission Core Reactor Quantum Reactor Propulsion Light Treads Treads Light Treads Leg Aluminum Leg Wheel Compact Wheel Hover Unit Improved Gyrokinetic Inverter Flight Unit Xenon Bombardment Thruster Utility Hacking Suite Device Improved Heat Sink Storage Small Storage Unit Processor Machine Analyzer Hackware Hacking Suite Protection Insulated Plating Weapon Powered Hammer Energy Gun Heavy EM Shotgun Energy Cannon Advanced Plasma Cannon Ballistic Gun Heavy Battle Rifle Ballistic Cannon Hypervelocity Gauss Cannon Launcher Rocket Launcher Special Weapon Mining Laser Impact Weapon Powered Hammer Piercing Weapon Enhanced Force Lance Special Melee Weapon Improved Datajack Build | -11 -10 -10 -10 -9 -8 -8 -8 -7 -6 -5 -4 -3 -2 ------- Run | Yrd Mat Min Exi Min Mat Gar Mat Fac Fac Fac Fac Res Res Slots Evolved 16 | . . . . . 4 . . 2 2 2 2 2 2 Power 1 | . . . . . . . . . 1 . . . . Propulsion 2 | . . . . . 2 . . . . . . . . Utility 12 | . . . . . 2 . . 2 1 2 2 2 1 Weapon 1 | . . . . . . . . . . . . . 1 Parts Attached 119 | . 1 8 . 1 33 18 1 18 13 14 4 5 3 Power 14 | . . 1 . . 4 2 . 1 1 2 . 1 2 Engine 5 | . . 1 . . 3 . . . . . . 1 . Core 7 | . . . . . 1 2 . 1 1 2 . . . Reactor 2 | . . . . . . . . . . . . . 2 Propulsion 25 | . . 2 . . 5 3 . 5 3 2 2 3 . Treads 6 | . . . . . 3 3 . . . . . . . Leg 2 | . . 2 . . . . . . . . . . . Wheel 2 | . . . . . 2 . . . . . . . . Hover 6 | . . . . . . . . . . 1 2 3 . Flight 9 | . . . . . . . . 5 3 1 . . . Utility 34 | . 1 . . 1 9 2 1 6 7 4 2 . 1 Device 18 | . 1 . . 1 6 1 1 2 4 1 1 . . Storage 1 | . . . . . 1 . . . . . . . . Processor 6 | . . . . . 1 1 . 2 2 . . . . Hackware 8 | . . . . . . . . 2 1 3 1 . 1 Protection 1 | . . . . . 1 . . . . . . . . Artifact . | . . . . . . . . . . . . . . Weapon 46 | . . 5 . . 15 11 . 6 2 6 . 1 . Energy Gun 13 | . . 1 . . 5 1 . 4 2 . . . . Energy Cannon 4 | . . . . . 2 1 . . . 1 . . . Ballistic Gun 11 | . . 3 . . 3 5 . . . . . . . Ballistic Cannon 2 | . . . . . . . . 2 . . . . . Launcher 6 | . . . . . 2 4 . . . . . . . Special Weapon 1 | . . 1 . . . . . . . . . . . Impact Weapon 3 | . . . . . 3 . . . . . . . . Slashing Weapon . | . . . . . . . . . . . . . . Piercing Weapon 5 | . . . . . . . . . . 4 . 1 . Special Melee Weapon 1 | . . . . . . . . . . 1 . . . Unidentified Prototypes 5 | . . . . . 3 . . . 1 1 . . . Corrupted Parts 1 | . . . . . . . . . . 1 . . . System Corruption 8 | . . . . . . . . . . 8 . . . Parts Lost 38 | . . . . . 7 6 . 1 5 3 . 11 5 Power 5 | . . . . . 1 . . . 1 . . 2 1 Propulsion 14 | . . . . . 3 3 . . 2 2 . 2 2 Utility 14 | . . . . . 2 1 . 1 1 1 . 6 2 Weapon 5 | . . . . . 1 2 . . 1 . . 1 . Highest Loss Streak 9 | . . . . . 4 3 . 1 3 2 . 9 3 To Critical Strikes . | . . . . . . . . . . . . . . Average Slot Usage (%) 81 | . 92 100 100 85 84 83 90 70 86 70 79 63 28 Engine 4 | . 14 14 14 14 7 . . . . . . . . Core 3 | . . . . . 1 2 9 7 10 2 5 2 . Treads 7 | . . . . . 16 18 27 . . . . . . Leg 5 | . 28 28 28 28 1 . . . . . . . . Wheel 3 | . . . . . 6 10 . . . . . . . Hover 1 | . . . . . . . . . . . 10 10 9 Flight 6 | . . . . . . . . 16 25 14 2 . . Device 12 | . 6 14 14 14 18 15 9 10 6 9 8 7 . Storage 6 | . 14 14 14 14 9 9 9 . . . . . . Processor 9 | . . . . . 1 11 18 24 20 17 15 13 . Hackware 6 | . . . . . . . . 7 16 22 29 21 12 Protection 1 | . . . . . 4 . . . . . . . . Energy Gun 1 | . . 1 . . 3 2 9 . . . . . . Ballistic Gun 7 | . 28 25 28 14 2 12 . . . . . . . Impact Weapon 2 | . . . . . 10 . . . . . . . . Peak Build Rating 75 | . 7 10 11 12 29 39 40 48 62 71 75 72 51 Average Rating 32 | . 6 7 10 10 25 24 39 33 53 52 65 63 36 On Entrance 29 | 6 6 7 10 11 12 24 39 40 48 41 55 66 44 Naked Turns . | . . . . . . . . . . . . . . Heaviest Build 32 | 13 14 17 16 15 32 25 26 26 21 18 10 20 28 Greatest Support 67 | 20 20 20 20 20 60 67 67 67 23 18 34 35 35 Greatest Overweight (x) 3 | . . . . . 2 . . 3 . 1 . 1 . Average Overweight (x) . | . . . . . . . . . . . . . . Largest Inventory Capacity 8 | . 8 8 8 8 8 8 8 8 5 5 5 5 5 Average Capacity 6 | . 8 8 8 8 8 8 8 5 5 5 5 5 5 Most Carried 8 | . 6 8 8 8 8 8 8 8 5 5 5 4 3 Average Carried 5 | . 6 6 7 7 7 6 7 5 4 4 3 3 2 Final Capacity 8 | 8 8 8 8 8 8 8 8 5 5 5 5 5 5 Final Carried 8 | 6 6 8 7 7 6 8 8 5 4 5 4 2 2 Class Distribution -------------------- 51% | Mutant 26% | Hacker-Scout 5% | Commander-Mutant 4% | Hacker-Mutant 3% | Infiltrator-Sprinter Dominant Class ---------------- Mutant | -10/Materials Mutant | -10/Mines Mutant | -10/Exiles Scavenger-Mutant | -9/Mines Mutant | -8/Materials Mutant | -8/Garrison Mutant | -8/Materials Infiltrator-Sprinter | -7/Factory Hacker-Scout | -6/Factory Hacker-Scout | -5/Factory Hacker-Scout | -4/Factory Hacker-Scout | -3/Research Hacker-Mutant | -2/Research Resources | -11 -10 -10 -10 -9 -8 -8 -8 -7 -6 -5 -4 -3 -2 ----------- Run | Yrd Mat Min Exi Min Mat Gar Mat Fac Fac Fac Fac Res Res Matter Collected 2352 | 200 58 162 . 37 402 512 26 210 265 245 . 65 170 Remotely . | . . . . . . . . . . . . . . Salvage Created 3050 | . 121 306 . 70 1030 620 163 . 209 191 . 169 171 Parts 193 | . 7 16 . 6 59 49 10 . 18 10 . 11 7 Haulers Intercepted 1 | . . . . . 1 . . . . . . . . Recyclers Shooed 1 | . . . . . . . . . . . . 1 . Parts Field Recycled . | . . . . . . . . . . . . . . Retrieved Matter . | . . . . . . . . . . . . . . Parts Self-Destructed . | . . . . . . . . . . . . . . Prevented . | . . . . . . . . . . . . . . Kills | -11 -10 -10 -10 -9 -8 -8 -8 -7 -6 -5 -4 -3 -2 ------- Run | Yrd Mat Min Exi Min Mat Gar Mat Fac Fac Fac Fac Res Res Combat Hostiles Destroyed 71 | . 3 8 . 2 25 23 3 . 3 3 . 1 . Melee 9 | . . . . . 5 . . . . 3 . 1 . Guns 32 | . 3 8 . 2 9 8 1 . 1 . . . . Cannons 5 | . . . . . 1 . 2 . 2 . . . . AOE 21 | . . . . . 7 14 . . . . . . . Classes Destroyed 15 | . 1 2 . 1 6 2 . . 2 . . . 1 Worker 7 | . . 1 . . 5 . . . 1 . . . . Builder 1 | . . . . . . . . . . . . . 1 Hauler 1 | . . . . . 1 . . . . . . . . Recycler 3 | . . . . . 1 . . . . . . 1 1 Operator 2 | . . . . . . . . . 1 . . . 1 Watcher 7 | . . . . . 4 1 . . 2 . . . . Swarmer 23 | . . . . 1 11 11 . . . . . . . Cutter 2 | . . . . . . 2 . . . . . . . Grunt 25 | . 3 6 . 1 7 6 2 . . . . . . Sentry 11 | . . . . . 5 2 1 . 2 1 . . . Specialist 2 | . . . . . . 2 . . . . . . . Hunter 1 | . . . . . 1 . . . . . . . . Programmer 4 | . . . . . . . . . 1 2 . 1 . Heavy 1 | . . . . . 1 . . . . . . . . Assembled 2 | . . 2 . . . . . . . . . . . Best Kill Streak 6 | . 3 4 . 1 5 6 1 . 2 2 . 1 3 Combat Bots Only 6 | . 3 4 . 1 5 6 1 . 1 2 . 1 . Max Kills in Single Turn 3 | . 1 1 . 1 2 3 1 . 1 1 . 1 1 Gunslinging . | . . . . . . . . . . . . . . Exploded 3 | . . . . . 2 3 . . . . . . . Melee 1 | . . . . . 1 . . . . 1 . 1 . Uniques/NPCs Destroyed . | . . . . . . . . . . . . . . Combat | -11 -10 -10 -10 -9 -8 -8 -8 -7 -6 -5 -4 -3 -2 -------- Run | Yrd Mat Min Exi Min Mat Gar Mat Fac Fac Fac Fac Res Res Hostile Shots Fired 602 | . 14 48 . 22 150 73 18 13 86 16 . 72 90 Missed 225 | . 2 15 . 11 45 29 5 7 52 6 . 19 34 Damage Taken 7333 | . 171 382 . 158 1403 867 206 72 594 218 . 1506 1756 Core 3271 | . 47 114 . 59 121 134 28 14 177 64 . 1054 1459 Absorbed by Shields 115 | . . . . . 115 . . . . . . . . Ignored by Resistances 5 | . . . . . 5 . . . . . . . . Core Remaining (%) 68 | 100 . . . 12 . . 48 98 79 93 100 18 . Volleys Fired 215 | . 12 30 . 11 41 51 18 9 43 . . . . Largest 2 | . 2 2 . 2 2 2 2 1 1 . . . . Hottest 323 | . 40 100 . 53 126 173 323 225 225 . . . . Shots Fired 317 | . 24 56 . 13 61 86 25 9 43 . . . . Gun 217 | . 24 52 . 13 40 74 7 4 3 . . . . Cannon 78 | . . . . . 13 2 18 5 40 . . . . Launcher 18 | . . . . . 8 10 . . . . . . . Special 4 | . . 4 . . . . . . . . . . . Kinetic 199 | . 24 44 . 13 10 63 . 5 40 . . . . Thermal 73 | . . 4 . . 33 4 25 4 3 . . . . Explosive 18 | . . . . . 8 10 . . . . . . . Electromagnetic 27 | . . 8 . . 10 9 . . . . . . . Robot Hit Streak 11 | . 8 11 . 3 10 10 8 . 3 . . . . Robot Miss Streak 4 | . 2 4 . 3 3 2 3 . 3 . . . . Penetration Max . | . . . . . . . . . . . . . . Secondary Targets 5 | . . . . . 3 2 . . . . . . . Max Gunslinging Chain 1 | . . . . . 1 1 . . . . . . . Shots Hit Robots 231 | . 18 35 . 7 71 40 12 . 21 7 . 17 3 Core Hits 117 | . 7 17 . 2 30 38 4 . 9 4 . 4 2 Critical Kills 6 | . . . . . . . . . 6 . . . . Critical Parts Destroyed 11 | . 1 . . . 4 . . . 6 . . . . Critical Strikes 20 | . 1 . . . 4 . . . 13 1 . 1 . Destroy 14 | . 1 . . . . . . . 13 . . . . Smash 4 | . . . . . 4 . . . . . . . . Impale 2 | . . . . . . . . . . 1 . 1 . Melee Attacks 86 | . . . . . 49 . . . . 8 . 23 6 Impact 49 | . . . . . 49 . . . . . . . . Slashing . | . . . . . . . . . . . . . . Piercing 23 | . . . . . . . . . . 8 . 9 6 Sneak Attacks 15 | . . . . . 8 . . . . . . 5 2 Combat Hostiles 3 | . . . . . 1 . . . . . . 2 . Follow-up Attacks 5 | . . . . . 5 . . . . . . . . Damage Inflicted 7629 | . 201 411 . 124 3237 1620 506 . 369 391 . 464 306 Guns 2123 | . 193 407 . 124 526 595 231 . 47 . . . . Cannons 1009 | . . . . . 427 31 229 . 322 . . . . Explosions 1600 | . . . . . 560 994 46 . . . . . . Melee 2869 | . . . . . 1724 . . . . 391 . 454 300 Ramming 28 | . 8 4 . . . . . . . . . 10 6 Kinetic 1548 | . 193 336 . 124 111 462 . . 322 . . . . Thermal 1308 | . . . . . 754 47 460 . 47 . . . . Explosive 1502 | . . . . . 508 994 . . . . . . . Electromagnetic 374 | . . 71 . . 140 117 46 . . . . . . Impact 1724 | . . . . . 1724 . . . . . . . . Slashing . | . . . . . . . . . . . . . . Piercing 1145 | . . . . . . . . . . 391 . 454 300 Highest Corruption 9 | . . . . . . 1 1 4 1 9 . 9 6 Average Corruption 3 | . . . . . . 1 1 3 1 8 . 3 2 Corruption Purged . | . . . . . . . . . . . . . . Corruption Blocked . | . . . . . . . . . . . . . . Effects 34 | . . . . . . 2 3 6 2 18 . 2 1 Message Errors 8 | . . . . . . 1 . 2 1 3 . 1 . Matter Fused 16 | . . . . . . 1 3 3 . 8 . 1 . Heat Flow Errors 3 | . . . . . . . . 1 1 1 . . . Energy Discharges 3 | . . . . . . . . . . 2 . . 1 Data Loss (minor) 2 | . . . . . . . . . . 2 . . . Data Loss (major) 2 | . . . . . . . . . . 2 . . . Overload Shots 13 | . . . . . . . 6 4 3 . . . . Overflow Damage 906 | . . . . . 645 101 25 . . 6 . 28 101 Projectiles 25 | . . . . . . . 25 . . . . . . Explosions 175 | . . . . . 74 101 . . . . . . . Melee 706 | . . . . . 571 . . . . 6 . 28 101 Knockbacks 10 | . . . . . 8 . . . 1 . . . 1 Impact 9 | . . . . . 8 . . . . . . . 1 Kinetic 1 | . . . . . . . . . 1 . . . . Secondary . | . . . . . . . . . . . . . . Self-Inflicted Damage 119 | . . . . . 24 61 27 . . . . 5 2 Shots 5 | . . . . . 1 3 1 . . . . . . Rammed 3 | . . . . . . . . . . . . 1 2 Targets Rammed 8 | . 3 2 . . . . . . . . . 1 2 Kicked 5 | . 3 2 . . . . . . . . . . . Crushed . | . . . . . . . . . . . . . . Highest Temperature 426 | . 6 19 . . 360 60 426 364 392 115 . . . Average Temperature 117 | . 6 7 . . 185 36 173 102 104 66 . . . Received Heat Transfer 1426 | . 72 171 . 84 619 243 54 12 90 18 . 18 45 Effects 10 | . . . . . 2 . 2 1 5 . . . . Shutdowns 2 | . . . . . 1 . . 1 . . . . . Energy Bleed 2 | . . . . . 1 . . . 1 . . . . Interference 4 | . . . . . . . 2 . 2 . . . . Matter Decay 2 | . . . . . . . . . 2 . . . . Siege Activations . | . . . . . . . . . . . . . . Robots Corrupted 8 | . . . . . 8 . . . . . . . . Combat Hostiles 3 | . . . . . 3 . . . . . . . . Parts Fried 12 | . . . . . 9 3 . . . . . . . Impact Corruptions 23 | . . . . . 23 . . . . . . . . Robots Melted . | . . . . . . . . . . . . . . Combat Hostiles . | . . . . . . . . . . . . . . Parts Melted 3 | . . . . . 3 . . . . . . . . Heat Transferred 2326 | . . . . . 1602 87 587 . 50 . . . . Parts Sabotaged . | . . . . . . . . . . . . . . Parts Stolen . | . . . . . . . . . . . . . . Parts Stripped . | . . . . . . . . . . . . . . Power Chain Reactions 1 | . . . . . 1 . . . . . . . . Alert | -11 -10 -10 -10 -9 -8 -8 -8 -7 -6 -5 -4 -3 -2 ------- Run | Yrd Mat Min Exi Min Mat Gar Mat Fac Fac Fac Fac Res Res Peak Influence 1661 | . 115 146 . 112 450 1661 978 466 412 272 98 191 127 Initial 809 | . . 44 . . 43 292 809 444 . 168 98 51 2 Average 292 | . 48 50 . 93 140 997 864 204 149 144 98 113 47 Maximum Alert Level 5 | . . . . . 2 5 3 2 2 1 . . . Low Security (%) 66 | . 100 100 . 100 82 . . 67 59 86 100 100 100 Level 1 12 | . . . . . 16 11 . 4 38 13 . . . Level 2 6 | . . . . . 1 21 . 27 2 . . . . Level 3 7 | . . . . . . 23 100 . . . . . . Level 4 6 | . . . . . . 38 . . . . . . . Level 5 . | . . . . . . 5 . . . . . . . High Security . | . . . . . . . . . . . . . . Max Security . | . . . . . . . . . . . . . . Squads Dispatched 18 | . 1 . . . 6 . . 1 4 5 . 1 . Investigation 6 | . 1 . . . 2 . . . 1 2 . . . Extermination 6 | . . . . . . . . 1 2 2 . 1 . Reinforcement 3 | . . . . . 2 . . . 1 . . . . Assault . | . . . . . . . . . . . . . . Garrison 3 | . . . . . 2 . . . . 1 . . . Intercept . | . . . . . . . . . . . . . . Searches Triggered . | . . . . . . . . . . . . . . Construction Impeded 1 | . . . . . 1 . . . . . . . . Haulers Reinforced . | . . . . . . . . . . . . . . Active Scanning Responses . | . . . . . . . . . . . . . . Cargo Convoy Interrupts . | . . . . . . . . . . . . . . Stealth | -11 -10 -10 -10 -9 -8 -8 -8 -7 -6 -5 -4 -3 -2 --------- Run | Yrd Mat Min Exi Min Mat Gar Mat Fac Fac Fac Fac Res Res Distress Signals 7 | . . . . . 1 . 2 . 2 1 . . 1 Communications Jammed 14 | . . . . . . . . 1 13 . . . . Distress Signals 12 | . . . . . . . . 1 11 . . . . Times Spotted 168 | . 5 8 . 8 31 36 10 7 27 6 . 16 14 Peak Tracking Total 8 | . 3 4 . 4 4 5 3 4 6 2 . 6 8 Tactical Retreats 22 | . 1 . . . 1 4 . 3 7 1 . 2 3 Traps | -11 -10 -10 -10 -9 -8 -8 -8 -7 -6 -5 -4 -3 -2 ------- Run | Yrd Mat Min Exi Min Mat Gar Mat Fac Fac Fac Fac Res Res Traps Triggered 15 | . 1 . . . 1 7 . 3 1 1 . . 1 Indirectly . | . . . . . . . . . . . . . . Trap Hack Attempts . | . . . . . . . . . . . . . . Triggered . | . . . . . . . . . . . . . . Disarmed . | . . . . . . . . . . . . . . Reprogrammed . | . . . . . . . . . . . . . . Reused 4 | . . . . . . 4 . . . . . . . Traps Extracted . | . . . . . . . . . . . . . . Installed 6 | . . . . . . 6 . . . . . . . Triggered 6 | . . 2 . . . 4 . . . . . . . Most Traps Carried 3 | . . . . . . 3 . . . . . . . Machines | -11 -10 -10 -10 -9 -8 -8 -8 -7 -6 -5 -4 -3 -2 ---------- Run | Yrd Mat Min Exi Min Mat Gar Mat Fac Fac Fac Fac Res Res Machines Disabled 18 | . . . . 1 4 7 4 . . 1 . . 1 Max in Single Turn 2 | . . . . 1 2 2 2 . . . . . 1 Garrison Access 4 | . . . . . . . . 1 2 . . 1 . Garrison Relay 2 | . . . . . . 2 . . . . . . . Machines Repaired . | . . . . . . . . . . . . . . Machines Dismantled . | . . . . . . . . . . . . . . Machines Sabotaged . | . . . . . . . . . . . . . . Overloaded Fab Kills . | . . . . . . . . . . . . . . Hacking | -11 -10 -10 -10 -9 -8 -8 -8 -7 -6 -5 -4 -3 -2 --------- Run | Yrd Mat Min Exi Min Mat Gar Mat Fac Fac Fac Fac Res Res Machines Accessed 48 | . 1 . 3 . 9 3 1 9 11 6 . 2 3 Terminals 30 | . 1 . . . 8 3 1 5 7 1 . 1 3 Fabricators 7 | . . . . . . . . 3 . 4 . . . Repair Stations . | . . . . . . . . . . . . . . Recycling Units 2 | . . . . . . . . . 2 . . . . Scanalyzers . | . . . . . . . . . . . . . . Garrison Access 6 | . . . . . 1 . . 1 2 1 . 1 . Total Hacks 131 | . 3 . 14 . 30 7 2 25 26 11 . 5 8 Successful 79 | . 2 . 14 . 16 1 1 13 19 8 . 4 1 Failed 52 | . 1 . . . 14 6 1 12 7 3 . 1 7 Catastrophic 10 | . . . . . 2 4 . . 1 1 . . 2 Database Lockouts . | . . . . . . . . . . . . . . Manual 59 | . . . 1 . 19 . . 17 11 7 . 2 2 Terminals 90 | . 3 . . . 27 7 2 19 18 2 . 4 8 Fabricators 12 | . . . . . . . . 5 . 7 . . . Repair Stations . | . . . . . . . . . . . . . . Recycling Units 5 | . . . . . . . . . 5 . . . . Scanalyzers . | . . . . . . . . . . . . . . Garrison Access 10 | . . . . . 3 . . 1 3 2 . 1 . Terminal Hacks 38 | . 2 . 14 . 7 1 1 3 5 1 . 3 1 Record 13 | . . . 13 . . . . . . . . . . Robot Analysis 2 | . . . . . 1 . . . 1 . . . . Prototype ID Bank 2 | . . . . . 1 . . . 1 . . . . Open Door 1 | . . . . . . 1 . . . . . . . Level Access Points 2 | . . . . . . . . . . . . 1 1 Branch Access Points 4 | . . . . . 2 . 1 . 1 . . . . Emergency Access Points 2 | . 1 . . . 1 . . . . . . . . Terminal Index 2 | . . . . . . . . . 1 1 . . . Garrison Index 1 | . . . . . . . . . . . . 1 . Unreport Threat 2 | . . . . . . . . 2 . . . . . Locate Traps 3 | . . . . . 2 . . 1 . . . . . Registered Components 1 | . . . . . . . . . 1 . . . . Zone Layout 2 | . 1 . . . . . . . . . . 1 . Derelict Proto ID Bank 1 | . . . 1 . . . . . . . . . . Fabricator Hacks 4 | . . . . . . . . 2 . 2 . . . Network Status 3 | . . . . . . . . 2 . 1 . . . Build 1 | . . . . . . . . . . 1 . . . Repair Station Hacks . | . . . . . . . . . . . . . . Recycling Unit Hacks 5 | . . . . . . . . . 5 . . . . Process 2 | . . . . . . . . . 2 . . . . Retrieve Matter 3 | . . . . . . . . . 3 . . . . Scanalyzer . | . . . . . . . . . . . . . . Garrison Access Hacks 7 | . . . . . 1 . . 1 3 1 . 1 . Unlock Access 1 | . . . . . 1 . . . . . . . . Seal Access 4 | . . . . . . . . 1 2 . . 1 . Coupler Status 2 | . . . . . . . . . 1 1 . . . Unauthorized Hacks 25 | . . . . . 8 . . 7 6 4 . . . Terminals 19 | . . . . . 8 . . 5 6 . . . . Assimilate 3 | . . . . . 1 . . . 2 . . . . Disrupt 1 | . . . . . 1 . . . . . . . . Skim 15 | . . . . . 6 . . 5 4 . . . . Fabricators 5 | . . . . . . . . 2 . 3 . . . Liberate 5 | . . . . . . . . 2 . 3 . . . Repair Stations . | . . . . . . . . . . . . . . Recycling Units . | . . . . . . . . . . . . . . Scanalyzers . | . . . . . . . . . . . . . . Garrison Access 1 | . . . . . . . . . . 1 . . . Eject 1 | . . . . . . . . . . 1 . . . Data Cores Recovered . | . . . . . . . . . . . . . . Used . | . . . . . . . . . . . . . . Hacking Detections 33 | . 1 . . . 7 2 1 6 7 5 . 1 3 Full Trace Events 7 | . 1 . . . 2 2 . . 1 1 . . . Feedback Events . | . . . . . . . . . . . . . . Feedback Blocked . | . . . . . . . . . . . . . . Robot Schematics Acquired . | . . . . . . . . . . . . . . Robots Built . | . . . . . . . . . . . . . . Authchips . | . . . . . . . . . . . . . . Time . | . . . . . . . . . . . . . . Total Robot Build Rating . | . . . . . . . . . . . . . . Part Schematics Acquired . | . . . . . . . . . . . . . . Parts Built 2 | . . . . . . . . . . 2 . . . Authchips . | . . . . . . . . . . . . . . Time 128 | . . . . . . . . . . 128 . . . Total Part Build Rating 16 | . . . . . . . . . . 16 . . . Parts Repaired . | . . . . . . . . . . . . . . Time . | . . . . . . . . . . . . . . Parts Recycled . | . . . . . . . . . . . . . . Recycled Matter 32 | . . . . . . . . . 32 . . . . Retrieved Matter 32 | . . . . . . . . . 32 . . . . Retrieved Components . | . . . . . . . . . . . . . . Parts Scanalyzed . | . . . . . . . . . . . . . . Part Schematics Acquired . | . . . . . . . . . . . . . . Parts Damaged . | . . . . . . . . . . . . . . Bothacking | -11 -10 -10 -10 -9 -8 -8 -8 -7 -6 -5 -4 -3 -2 ------------ Run | Yrd Mat Min Exi Min Mat Gar Mat Fac Fac Fac Fac Res Res Used RIF Installer 1 | . . . . . . 1 . . . . . . . Robots Hacked 4 | . . . . . . . . . . . . 4 . Non-combat 2 | . . . . . . . . . . . . 2 . Combat 2 | . . . . . . . . . . . . 2 . Robot Hacks Applied 7 | . . . . . . . . . . . . 7 . parse_system 1 | . . . . . . . . . . . . 1 . map_route 1 | . . . . . . . . . . . . 1 . mark_security 1 | . . . . . . . . . . . . 1 . relay_feed 1 | . . . . . . . . . . . . 1 . disable_weapons 1 | . . . . . . . . . . . . 1 . go_dormant 1 | . . . . . . . . . . . . 1 . overwrite_iff 1 | . . . . . . . . . . . . 1 . Relay Couplers Released 13 | . . . . . . 9 . . . 4 . . . Ejected 4 | . . . . . . . . . . 4 . . . Machine Destruction 9 | . . . . . . 9 . . . . . . . Attached 2 | . . . . . . . . . . 1 1 . . Fabnet Peak Effective % . | . . . . . . . . . . . . . . Robots Rewired 6 | . . . . . . 6 . . . . . . . Allies Hacked . | . . . . . . . . . . . . . . Hacks Repelled . | . . . . . . . . . . . . . . Allies | -11 -10 -10 -10 -9 -8 -8 -8 -7 -6 -5 -4 -3 -2 -------- Run | Yrd Mat Min Exi Min Mat Gar Mat Fac Fac Fac Fac Res Res Total Allies 20 | . . 3 . . 1 8 . . 2 5 . 1 . Largest Group 6 | . . 3 3 3 1 6 . . 1 3 . 1 . Highest-Rated Group 128 | . . 40 40 40 10 128 . . 26 108 . 47 . Highest-Rated Ally 54 | . . 16 16 16 10 39 . . 26 54 . 47 . Total Orders 1 | . . . . . 1 . . . . . . . . ROAM 1 | . . . . . 1 . . . . . . . . Ally Attacks 93 | . . . . 16 . 61 . . . 12 . 4 . Total Damage 1392 | . . . . 192 . 702 . . . 359 . 139 . Kills 20 | . . . . 4 . 11 . . . 5 . . . Allies Corrupted . | . . . . . . . . . . . . . . Allies Melted . | . . . . . . . . . . . . . . Intel | -11 -10 -10 -10 -9 -8 -8 -8 -7 -6 -5 -4 -3 -2 ------- Run | Yrd Mat Min Exi Min Mat Gar Mat Fac Fac Fac Fac Res Res Robot Analysis Total 2 | . . . . . 1 . . . 1 . . . . Derelict Logs Recovered . | . . . . . . . . . . . . . . Drone Launches . | . . . . . . . . . . . . . . Drone Recoveries . | . . . . . . . . . . . . . . Exploration | -11 -10 -10 -10 -9 -8 -8 -8 -7 -6 -5 -4 -3 -2 ------------- Run | Yrd Mat Min Exi Min Mat Gar Mat Fac Fac Fac Fac Res Res Turns Passed 8974 | . 213 992 282 220 1869 1400 314 800 1234 789 82 424 355 Spaces Moved 8364 | 1 141 356 231 83 1051 915 156 1444 2190 854 101 463 378 Core 10 | . . . . . . . . 10 . . . . . Treads 837 | . . . . . 450 214 156 17 . . . . . Legs 906 | 1 141 356 231 83 94 . . . . . . . . Wheels 1208 | . . . . . 507 701 . . . . . . . Hover 1062 | . . . . . . . . . . 120 101 463 378 Flight 4341 | . . . . . . . . 1417 2190 734 . . . Fastest Speed 26 | 120 120 120 120 120 100 100 163 28 26 34 62 61 62 Average Speed 69 | 120 120 120 120 120 130 114 163 34 29 44 65 70 67 Slowest Speed 260 | 120 120 120 120 120 260 163 163 212 40 120 70 110 70 Overloaded Moves 20 | . . . . . . . . 17 3 . . . . Propulsion Burnouts . | . . . . . . . . . . . . . . Robots Hopped 18 | . . . . . . . . 9 8 1 . . . Cave-ins Triggered . | . . . . . . . . . . . . . . Exploration Rate (%) 35 | 2 26 71 60 18 83 78 17 35 51 26 5 15 12 Regions Visited 13 Branch Regions 3 Pre-discovered Areas 2 | . . . . . . . . 2 . . . . . Known Exits Taken 6 | . . . . . 1 . . 1 1 1 1 1 . Unknown Exits Taken 6 | 1 1 1 1 1 . . 1 . . . . . . Scrap Searched 1 | . . 1 . . . . . . . . . . . Spaces Dug 6 | . . . . . 1 . . 3 1 . . . 1 Terrain Destroyed 101 | . . 1 . 2 44 39 8 4 2 . . . 1 Melee 2 | . . . . . 1 . . . . . . . 1 Projectile 18 | . . 1 . 2 1 . 8 4 2 . . . . AOE 81 | . . . . . 42 39 . . . . . . . Terrain Rammed . | . . . . . . . . . . . . . . Walls Destroyed . | . . . . . . . . . . . . . . Machines Disabled . | . . . . . . . . . . . . . . Actions | -11 -10 -10 -10 -9 -8 -8 -8 -7 -6 -5 -4 -3 -2 --------- Run | Yrd Mat Min Exi Min Mat Gar Mat Fac Fac Fac Fac Res Res Total 11044 | . 162 862 237 191 1406 1180 191 1731 2722 1245 116 538 463 Wait 2059 | . 6 453 4 95 210 73 14 252 466 362 10 42 72 Move 8317 | . 140 355 230 82 1050 914 155 1425 2174 851 100 463 378 Hop 17 | . . . . . . . . 9 7 1 . . . Pick Up 42 | . . 5 1 . 11 11 1 2 7 3 . . 1 Fast Attach 54 | . 1 1 . . 15 6 1 7 5 11 2 3 2 Attach 43 | . . 4 . . 9 3 . 11 8 3 2 2 1 Detach 16 | . . 2 . . 1 . . 8 2 2 1 . . Swap 23 | . . 3 . 1 10 9 . . . . . . . Drop 65 | . . 7 2 2 18 9 2 8 10 4 1 1 1 Fire 215 | . 12 30 . 11 41 51 18 9 43 . . . . Melee 78 | . . . . . 41 . . . . 8 . 23 6 Ram 2 | . . . . . . . . . . . . . 2 Kick 5 | . 3 2 . . . . . . . . . . . Crush . | . . . . . . . . . . . . . . Escape Stasis 32 | . . . . . . 32 . . . . . . . Rewire 70 | . . . . . . 66 . . . . . 4 . Trap 6 | . . . . . . 6 . . . . . . . Miscellaneous . | . . . . . . . . . . . . . . Route ------- -11/Scrapyard -10/Materials (discovered 2 exits: [*Mat] / [*Min]) -10/Mines (discovered 2 exits: [*Mat] / *Exi) -10/Exiles -9/Mines -8/Materials -8/Garrison (discovered 4 exits: *Mat x4) -8/Materials -7/Factory (discovered 2 exits: *Fac / Low) -6/Factory (discovered 3 exits: *Fac / *Low x2) -5/Factory -4/Factory -3/Research (discovered 3 exits: *Res x3) -2/Research (discovered 3 exits: Acc x3) History --------- Turn | Location | Event 1 | -11/Scrapyard | Discovered new exit (range 0) 1 | -11/Scrapyard | Entered Materials 181 | -10/Materials | Discovered new exit (range 3) 182 | -10/Materials | Discovered new exit (range 13) 214 | -10/Materials | Entered Mines 277 | -10/Mines | Discovered new exit (range 11) 311 | -10/Mines | Build established: Mutant 359 | -10/Mines | Excavation squad dispatched 359 | -10/Mines | A large section of the Mines collapsed 609 | -10/Mines | Excavation squad dispatched 874 | -10/Mines | Core integrity fell below 50% 1006 | -10/Mines | A weapon hastily lodged in a ceiling crevice suddenly fell to the ground 1019 | -10/Mines | Assisted by bots powering up and referring to "LRC-V3" 1102 | -10/Mines | Received a Rocket Launcher from a helpful Derelict 1196 | -10/Mines | Deemed a non-threat by the Exiles lab entrance 1196 | -10/Mines | Discovered new exit (range 5) 1206 | -10/Mines | Entered Exiles 1206 | -10/Exiles | Accompanied by 3 allies 1234 | -10/Exiles | Met 8R-AWN 1256 | -10/Exiles | Met EX-HEX 1290 | -10/Exiles | Met EX-BIN 1304 | -10/Exiles | Aligned with FarCom system 1305 | -10/Exiles | Given EX-Vault access code 1335 | -10/Exiles | Opened EX-Vault 1346 | -10/Exiles | Found Gui. Plasma Cannon 1397 | -10/Exiles | Warned to stay clear of 0b10 Research branches 1433 | -10/Exiles | Met EX-DEC 1475 | -10/Exiles | Discovered new exit (range 10) 1488 | -10/Exiles | Left Exiles lab with Gui. Plasma Cannon 1488 | -10/Exiles | Entered Mines 1488 | -9/Mines | Accompanied by 3 allies 1683 | -9/Mines | Discovered new exit (range 10) 1699 | -9/Mines | Core integrity fell below 20% 1708 | -9/Mines | Entered Materials 1708 | -8/Materials | Evolved 4 slots: Propulsion x2, Utility x2 2555 | -8/Materials | Garrison activated, responded to threat 2989 | -8/Materials | Lost 4 parts (2n2u) 3354 | -8/Materials | Learned location of 1 exit from Recycling 3488 | -8/Materials | Learned location of 1 exit from Recycling 3532 | -8/Materials | Identified exit to Garrison 3540 | -8/Materials | Learned location of 1 exit from Recycling 3577 | -8/Materials | Entered Garrison 3595 | -8/Garrison | Triggered checkpoint 3613 | -8/Garrison | Discovered new exit (range 5) 3719 | -8/Garrison | Triggered checkpoint 3828 | -8/Garrison | Triggered checkpoint 3829 | -8/Garrison | Triggered checkpoint 3861 | -8/Garrison | Triggered checkpoint 3982 | -8/Garrison | Discovered new exit (range 10) 4003 | -8/Garrison | Triggered checkpoint 4038 | -8/Garrison | Triggered checkpoint 4154 | -8/Garrison | Installed Relay Interface Framework 4209 | -8/Garrison | Triggered checkpoint 4255 | -8/Garrison | Rescued a captive Derelict 4262 | -8/Garrison | Rescued a captive Derelict 4317 | -8/Garrison | Discovered new exit (range 10) 4347 | -8/Garrison | Triggered checkpoint 4397 | -8/Garrison | Triggered checkpoint 4422 | -8/Garrison | Build established: Commander-Mutant 4553 | -8/Garrison | Triggered checkpoint 4623 | -8/Garrison | Lost 3 parts (1n1u1w) 4623 | -8/Garrison | Lost 6 allies 4754 | -8/Garrison | Garrison Relay disabled 4876 | -8/Garrison | Build established: Mutant 4938 | -8/Garrison | Discovered new exit (range 14) 4977 | -8/Garrison | Entered Materials 5276 | -8/Materials | Discovered new exit (range 7) 5289 | -8/Materials | Core integrity fell below 50% 5291 | -8/Materials | Entered Factory 5291 | -7/Factory | Evolved 2 slots: Utility x2 5292 | -7/Factory | Identified exit to Lower Caves 5678 | -7/Factory | Build established: Infiltrator-Sprinter 6019 | -7/Factory | Learned location of Lower Caves (-6) 6065 | -7/Factory | Discovered new exit (range 19) 6078 | -7/Factory | Learned 4 Extension zone layouts 6091 | -7/Factory | Learned location of Warlord (-4) 6091 | -7/Factory | Identified exit to Factory 6091 | -7/Factory | Entered another Factory area 6091 | -6/Factory | Evolved 2 slots: Power x1, Utility x1 6092 | -6/Factory | Identified exit to Lower Caves 6258 | -6/Factory | Discovered exit to Lower Caves (range 20) 6299 | -6/Factory | Build established: Hacker-Scout 7322 | -6/Factory | Discovered new exit (range 4) 7322 | -6/Factory | Identified exit to Factory 7325 | -6/Factory | Entered another Factory area 7325 | -5/Factory | Evolved 2 slots: Utility x2 7331 | -5/Factory | Lost 3 parts (1p1n1w) 7820 | -5/Factory | Fabricated Enh. Force Lance (x2) 8094 | -5/Factory | Garrison activated, responded to threat 8105 | -5/Factory | Discovered new exit (range 9) 8113 | -5/Factory | Identified exit to Factory 8114 | -5/Factory | Entered another Factory area 8114 | -4/Factory | Evolved 2 slots: Utility x2 8181 | -4/Factory | Discovered new exit (range 9) 8188 | -4/Factory | Identified exit to Research 8196 | -4/Factory | Entered Research 8196 | -3/Research | Evolved 2 slots: Utility x2 8324 | -3/Research | Identified exit to Research 8592 | -3/Research | Core integrity fell below 50% 8620 | -3/Research | Core integrity fell below 20% 8620 | -3/Research | Entered another Research area 8620 | -2/Research | Evolved 2 slots: Utility x1, Weapon x1 8650 | -2/Research | Lost 9 parts (1p2n5u1w) 8656 | -2/Research | Identified exit to Access 8859 | -2/Research | Build established: Hacker-Mutant 8876 | -2/Research | Lost 3 parts (1p2n) 8886 | -2/Research | Core integrity fell below 50% 8939 | -2/Research | Core integrity fell below 20% 8973 | -2/Research | Spotted B-90 Cyclops 8975 | -2/Research | Destroyed by P-80 Master with Gamma Rifle Last Messages --------------- 08842_ K-01 Serf destroyed. 08842_ Gyrokinetic Inverter destroyed. 08842_ K-01 Serf collects debris. 08843_ Slammed into P-80 Master. 08844_ P-80 Master knocked back. 08845_ Penetrated by Slug. 08845_ Imp. Gyrokinetic Inverter destroyed. 08846_ Knocked back. 08847_ K-01 Serf collects debris. 08865_ Connecting with Terminal... 08881_ Slug penetrates Wall. 08884_ Penetrated by Slug. 08895_ Relay Coupler [Grunt] destroyed. 08902_ Penetrated by Slug. 08924_ Hacking Suite destroyed. 08939_ ALERT: Security rotation in progress. 08951_ P-80 Master resets W-44 Eye, system corruption cleaned. 08951_ Detecting nearby Garrison Access. 08967_ System corrupted: Energy discharge (-24). Map ----- +----------------------------------------------------+ | ?????????????????????????????????????????????????? | | ?????????????????????????????????????????????????? | | ?????????????????????????????????????????????????? | | ?????????????????????????????????????????????????? | | ?????????????????????????????????????????????????? | | ?????????????????????????????????????????????????? | | ?????????????????????????????????????????????????? | | ?????????????????????????????????????????????????? | | ?????????????????????????????????????????????????? | | ?????????????????????????????????????????????????? | | ???????????????????????#### ?????????????????????? | | ??????????????????????? ?????????????????????? | | ??????????????????????? BB ?????????????????????? | | ??????????????????????? BBw?????* ??????????????? | | ??????????????????????? p "???? ??????????????? | | ???????????????????????# """" ???????????????? | | ???????????????????????# """" ????????????????? | | ???????????????????????# """"p ????????????????? | | ???????????????????????# ?????????????????? | | ???????????????????????# ??????????????????? | | ???????????????????????# ???????????????????? | | ???????????????????????# ????????????????????? | | ???????????????????????# #????????????????????? | | ???????????????????????# #????????????????????? | | ???????????????????????# #????????????????????? | | ???????????????????????# @ #????????????????????? | | ???????????????????????# #????????????????????? | | ???????????????????????# #?????Y??????????? ??? | | ???????????????? ??????# #???????????????? ? | | ???????????????? ""????# #???????????????? # | | ???????????????? """ ??# #???????????????? # | | ??????????????# """ # #???????????????? # | | ??????????????# + #???????????????? | | ??????????????# ! # k#???????????????? | | ??????????????#######??# #???????????????? | | ???????????????????????# #???????????????# | | ???????????????????????# #???????????????# # | | ???????????????????????# pp#???????????????# # | | ??????????????????? # p################# # | | ???????????????????? + # | | ???????????????????????# # | | ???????????????????????# # | | ???????????????????????# # | | ???????????????????????#### #############+### # | | ??????????????????????????# #??????????? ?# # | | ???#########??????????????# #??????????? ?# # | | ???# ??????????????#+#?????????? # # | | ???# ?????????????? ???????????? !!# # | | ???# " #???????????# ?????????? !!# # | | ???# """"#???????????# ?????????? # # | +----------------------------------------------------+ Best States ------------- Heat Dissipation 73 Energy Generation 25 Energy Capacity 350 Matter Stores 300 Matter Capacity 300 Sight Range 22 Terrain Scan Range 24 Terrain Scan Density 10 ECM Strength 1 Jamming Range 12 Armor Coverage 150 Resistance: EM 15 Evasion (%) 64 Targeting Accuracy 8 Recoil Reduction 3 Energy Filtering 30 Offensive Hacking 42 Defensive Hacking 10 Relay Coupler Types 2 Relay Coupler Value 37 Item Schematics ----------------- None Robot Schematics ------------------ None Fabricated ------------ Enh. Force Lance | x2 | -5/Factory | Preloaded Alien Tech Used ----------------- None Achievements -------------- None Challenges ------------ None Game ------ Seed ThermicTractorGuard Manual? 0 Play Time 01:33:38 Cumulative 96.0 hours Start 2024.08.11 @ 11:29:47 End 2024.08.11 @ 13:10:50 Sessions 1 Manual Loads 0 Difficulty Rogue Special Mode None Game No. 163 Rogue 162 Adventurer 1 Explorer 0 Win Type - Total 0 Types 0/0/0/0/0/0/0/0/0 Lore% 57 Gallery% 61 Achievement% 48 Wizard Run 0 Options --------- Layout 1 ASCII 0 Keyboard 0 Movement Mouse Keybinds 0 Fullscreen 2 Font 20/SmallcapsGlow Map View 54x42 Zoom Use 0% Tactical HUD 1 Map Filters NONE Filters NONE Steam 0 RUN: dce0f0f1-5958-42f1-a474-8fe6b0b2bec5